Cogmind - Beta 15 @@@ ROGUE MODE // 2025.06.19 @ 13:03:40 Player: Storm Mk9 Result: Self-destructed Performance ------------- Evolutions (2) 1000 Regions Visited (3) 600 Robots Destroyed (31) 155 Value Destroyed (885) 885 Prototype IDs (4) 80 Alien Tech Used (0) 0 Bonus (0) 0 TOTAL SCORE: 2720 Bonus ------- None Cogmind --------- Core Integrity 550/550 Matter 290/300 Energy 240/240 System Corruption 0% Temperature Cool (0) Movement Treading (240) Ox1 Location -8/Materials Parts ------- > --- POWER (1) -------- Nuclear Core > --- PROPULSION (3) --- Improved Treads Medium Treads Medium Treads > --- UTILITY (4) ------ Improved Heat Sink Huge Storage Unit Light Armor Plating Medium Armor Plating > --- WEAPON (3) ------- Medium Laser Assault Rifle Light Assault Rifle > --- INVENTORY (25) --- Improved Treads Improved Treads Improved Treads Medium Treads Medium Treads Improved Cooling System Improved Cooling System Kinecellerator Light Armor Plating System Shield Small Laser Beam Rifle Assault Rifle Light Assault Rifle Heavy Assault Rifle Grenade Launcher Ripper Peak State ------------ > --- POWER ------------ Nuclear Core > --- PROPULSION ------- Improved Treads Medium Treads Medium Treads > --- UTILITY ---------- Improved Heat Sink Huge Storage Unit Light Armor Plating Medium Armor Plating > --- WEAPON ----------- Medium Laser Assault Rifle Light Assault Rifle > --- INVENTORY -------- Improved Treads Improved Treads Improved Treads Medium Treads Medium Treads Improved Cooling System Improved Cooling System Kinecellerator Light Armor Plating System Shield Small Laser Beam Rifle Assault Rifle Light Assault Rifle Heavy Assault Rifle Grenade Launcher Ripper [Rating: 27] Favorites ----------- Power Ion Engine Engine Ion Engine Power Core Nuclear Core Propulsion Improved Treads Treads Improved Treads Utility Seismic Detector Device Seismic Detector Storage Small Storage Unit Protection Medium Armor Plating Weapon Medium Laser Energy Gun Medium Laser Ballistic Gun Light Assault Rifle Special Weapon Mining Laser Build | -11 -10 -10 -8 ------- Run | Yrd Mat Sub Mat Slots Evolved 4 | . . . 4 Power . | . . . . Propulsion 1 | . . . 1 Utility 2 | . . . 2 Weapon 1 | . . . 1 Parts Attached 23 | 7 8 . 8 Power 3 | 1 1 . 1 Engine 2 | 1 1 . . Core 1 | . . . 1 Reactor . | . . . . Propulsion 7 | 2 2 . 3 Treads 7 | 2 2 . 3 Leg . | . . . . Wheel . | . . . . Hover . | . . . . Flight . | . . . . Utility 7 | 2 2 . 3 Device 2 | 1 1 . . Storage 3 | 1 1 . 1 Processor . | . . . . Hackware . | . . . . Protection 2 | . . . 2 Artifact . | . . . . Weapon 6 | 2 3 . 1 Energy Gun 2 | 1 1 . . Energy Cannon . | . . . . Ballistic Gun 3 | 1 1 . 1 Ballistic Cannon . | . . . . Launcher . | . . . . Special Weapon 1 | . 1 . . Impact Weapon . | . . . . Slashing Weapon . | . . . . Piercing Weapon . | . . . . Special Melee Weapon . | . . . . Unidentified Prototypes . | . . . . Parts Lost 5 | . 4 1 . Power 2 | . 1 1 . Propulsion . | . . . . Utility 1 | . 1 . . Weapon 2 | . 2 . . Highest Loss Streak 4 | . 4 1 . To Critical Strikes . | . . . . Average Backups 8 | 1 7 9 13 Power . | . . . . Propulsion 1 | . . 2 4 Utility 1 | . . 1 3 Weapon 4 | . 4 6 5 Tool/Special . | . . . . Unused Backups 14 | . . . 14 Power . | . . . . Propulsion 3 | . . . 3 Utility 4 | . . . 4 Weapon 7 | . . . 7 Tool/Special . | . . . . Average Slot Usage (%) 95 | . 100 91 83 Engine 9 | . 14 6 . Treads 27 | . 28 28 26 Device 12 | . 14 14 9 Storage 12 | . 14 14 9 Protection 2 | . . . 11 Energy Gun 12 | . 13 14 9 Ballistic Gun 14 | . 14 14 18 Peak Build Rating 27 | 7 12 12 27 Average Rating 11 | 4 8 11 21 On Entrance 7 | . 7 12 11 Naked Turns . | . . . . Heaviest Build 103 | 14 29 28 103 Greatest Support 79 | 40 46 46 79 Greatest Overweight (x) 1 | . . . 1 Average Overweight (x) . | . . . . Largest Inventory Capacity 25 | 8 15 15 25 Average Capacity 13 | 7 10 15 23 Most Carried 18 | 4 13 9 18 Average Carried 8 | 1 7 8 13 Final Capacity 25 | 8 15 15 25 Final Carried 17 | 2 9 9 17 Class Distribution -------------------- 78% | Mutant 21% | Tank Dominant Class ---------------- Mutant | -10/Materials Mutant | -10/Subcaves Tank | -8/Materials Resources | -11 -10 -10 -8 ----------- Run | Yrd Mat Sub Mat Matter Collected 597 | 268 156 51 122 Remotely . | . . . . Salvage Created 1153 | 45 714 182 212 Parts 72 | 8 38 14 12 Haulers Intercepted 1 | . 1 . . Recyclers Shooed . | . . . . Parts Field Recycled . | . . . . Retrieved Matter . | . . . . Parts Self-Destructed . | . . . . Prevented . | . . . . Kills | -11 -10 -10 -8 ------- Run | Yrd Mat Sub Mat Combat Hostiles Destroyed 27 | . 19 4 4 Guns 27 | . 19 4 4 Classes Destroyed 7 | 1 4 1 1 Worker 1 | . 1 . . Tunneler 2 | 2 . . . Hauler 1 | . 1 . . Swarmer 6 | . 6 . . Grunt 13 | . 13 . . Sentry 4 | . . . 4 Subdweller 4 | . . 4 . Best Kill Streak 4 | 2 4 2 1 Combat Bots Only 4 | . 4 2 1 Max Kills in Single Turn 1 | 1 1 1 1 Gunslinging . | . . . . Exploded . | . . . . Melee . | . . . . Uniques/NPCs Destroyed . | . . . . Combat | -11 -10 -10 -8 -------- Run | Yrd Mat Sub Mat Hostile Shots Fired 129 | . 86 19 24 Missed 28 | . 19 4 5 Hits 101 | . 67 15 19 Projectile 101 | . 67 15 19 Critical Strikes 1 | . 1 . . Damage Taken 1261 | . 671 305 285 Core 213 | . 114 99 . Absorbed by Shields . | . . . . Core Remaining (%) 57 | 100 . 14 . Volleys Fired 104 | 8 66 17 13 Largest 3 | 2 2 2 3 Hottest 100 | 70 100 70 90 Shots Fired 219 | 16 130 34 39 Gun 218 | 16 129 34 39 Cannon . | . . . . Launcher . | . . . . Special 1 | . 1 . . Kinetic 115 | 8 64 17 26 Thermal 104 | 8 66 17 13 Explosive . | . . . . Electromagnetic . | . . . . Robot Hit Streak 22 | 5 22 21 19 Robot Miss Streak 3 | 2 3 1 1 Penetration Max . | . . . . Secondary Targets 3 | . 2 1 . Max Gunslinging Chain 1 | . 1 1 . Shots Hit Robots 163 | 11 93 28 31 Core Hits 62 | 4 40 10 8 Critical Kills . | . . . . Critical Parts Destroyed . | . . . . Critical Strikes 9 | . 6 2 1 Burn 9 | . 6 2 1 Melee Attacks . | . . . . Impact . | . . . . Slashing . | . . . . Piercing . | . . . . Sneak Attacks . | . . . . Combat Hostiles . | . . . . Follow-up Attacks . | . . . . Damage Inflicted 1880 | 108 1070 354 348 Guns 1880 | 108 1070 354 348 Cannons . | . . . . Explosions . | . . . . Melee . | . . . . Ramming . | . . . . Kinetic 802 | 45 396 177 184 Thermal 1078 | 63 674 177 164 Explosive . | . . . . Electromagnetic . | . . . . Impact . | . . . . Slashing . | . . . . Piercing . | . . . . Highest Corruption . | . . . . Average Corruption . | . . . . Corruption Purged . | . . . . Corruption Blocked . | . . . . Overload Shots . | . . . . Overflow Damage . | . . . . Projectiles . | . . . . Explosions . | . . . . Melee . | . . . . Knockbacks . | . . . . Impact . | . . . . Kinetic . | . . . . Secondary . | . . . . Self-Inflicted Damage . | . . . . Shots . | . . . . Rammed . | . . . . Targets Rammed . | . . . . Kicked . | . . . . Crushed . | . . . . Highest Temperature 146 | 90 146 . . Average Temperature 58 | 38 60 . . Received Heat Transfer 450 | . 270 90 90 Siege Activations . | . . . . Martial Activations . | . . . . Shielding Activations . | . . . . Robots Disrupted . | . . . . Combat Hostiles . | . . . . Robots Corrupted . | . . . . Combat Hostiles . | . . . . Parts Fried . | . . . . Impact Corruptions . | . . . . Robots Melted . | . . . . Combat Hostiles . | . . . . Parts Melted 6 | . 5 . 1 Heat Transferred 3737 | 185 2331 666 555 Parts Sabotaged . | . . . . Parts Stolen . | . . . . Parts Stripped . | . . . . Power Chain Reactions . | . . . . Alert | -11 -10 -10 -8 ------- Run | Yrd Mat Sub Mat Maximum Alert Level . | . . . . Low Security (%) 100 | 100 100 . 100 Level 1 . | . . . . Level 2 . | . . . . Level 3 . | . . . . Level 4 . | . . . . Level 5 . | . . . . High Security . | . . . . Max Security . | . . . . Peak Influence 180 | 5 180 . 50 Initial . | . . . . Average 53 | . 73 . 10 Influence Increases 667 | 10 529 . 128 Destroy 0b10 Robot/C 460 | . 380 . 80 Destroy 0b10 Robot/NC 20 | 10 10 . . Destroy Leader 122 | . 82 . 40 Successful Hack 34 | . 26 . 8 Destroy Structure 1 | . 1 . . Lose Combat Pursuer 30 | . 30 . . Influence Decreases 653 | 10 372 157 114 Entered New Map 76 | . . 76 . Time Decay 527 | 10 332 71 114 Lost Part 50 | . 40 10 . Squads Dispatched 4 | . 4 . . Investigation 2 | . 2 . . Extermination . | . . . . Reinforcement 2 | . 2 . . Assault . | . . . . Garrison . | . . . . Intercept . | . . . . Searches Triggered . | . . . . Construction Impeded . | . . . . Haulers Reinforced . | . . . . Active Scanning Responses . | . . . . Cargo Convoy Interrupts . | . . . . Stealth | -11 -10 -10 -8 --------- Run | Yrd Mat Sub Mat Distress Signals 4 | . 4 . . Communications Jammed . | . . . . Distress Signals . | . . . . Times Spotted 36 | . 26 4 6 Peak Tracking Total 6 | . 6 2 3 Tactical Retreats 1 | . 1 . . Traps | -11 -10 -10 -8 ------- Run | Yrd Mat Sub Mat Traps Triggered 2 | . 2 . . Indirectly . | . . . . Trap Hack Attempts . | . . . . Triggered . | . . . . Disarmed . | . . . . Reprogrammed . | . . . . Reused . | . . . . Traps Extracted . | . . . . Installed . | . . . . Triggered . | . . . . Machines | -11 -10 -10 -8 ---------- Run | Yrd Mat Sub Mat Machines Disabled . | . . . . Max in Single Turn . | . . . . Machines Repaired . | . . . . Machines Dismantled . | . . . . Machines Sabotaged . | . . . . Overloaded Fab Kills . | . . . . Hacking | -11 -10 -10 -8 --------- Run | Yrd Mat Sub Mat Machines Accessed 8 | . 6 . 2 Terminals 8 | . 6 . 2 Fabricators . | . . . . Repair Stations . | . . . . Recycling Units . | . . . . Scanalyzers . | . . . . Garrison Access . | . . . . Total Hacks 24 | . 17 . 7 Successful 8 | . 6 . 2 Failed 15 | . 10 . 5 Catastrophic 3 | . . . 3 Database Lockouts 1 | . 1 . . Manual 17 | . 13 . 4 Terminals 24 | . 17 . 7 Fabricators . | . . . . Repair Stations . | . . . . Recycling Units . | . . . . Scanalyzers . | . . . . Garrison Access . | . . . . Terminal Hacks 7 | . 6 . 1 Robot Analysis 3 | . 3 . . Prototype ID Bank 2 | . 2 . . Branch Access Points 1 | . . . 1 Locate Traps 1 | . 1 . . Fabricator Hacks . | . . . . Repair Station Hacks . | . . . . Recycling Unit Hacks . | . . . . Scanalyzer . | . . . . Garrison Access Hacks . | . . . . Unauthorized Hacks 1 | . . . 1 Terminals 1 | . . . 1 Botnet 1 | . . . 1 Fabricators . | . . . . Repair Stations . | . . . . Recycling Units . | . . . . Scanalyzers . | . . . . Garrison Access . | . . . . Data Cores Recovered . | . . . . Used . | . . . . Hacking Detections 7 | . 5 . 2 Full Trace Events 2 | . . . 2 Feedback Events . | . . . . Feedback Blocked . | . . . . Robot Schematics Acquired . | . . . . Robots Built . | . . . . Authchips . | . . . . Time . | . . . . Total Robot Build Rating . | . . . . Part Schematics Acquired . | . . . . Parts Built . | . . . . Authchips . | . . . . Time . | . . . . Total Part Build Rating . | . . . . Parts Repaired . | . . . . Time . | . . . . Parts Recycled . | . . . . Recycled Matter . | . . . . Retrieved Matter . | . . . . Retrieved Components . | . . . . Parts Scanalyzed . | . . . . Part Schematics Acquired . | . . . . Parts Damaged . | . . . . Bothacking | -11 -10 -10 -8 ------------ Run | Yrd Mat Sub Mat Used RIF Installer . | . . . . Robots Hacked . | . . . . Non-combat . | . . . . Combat . | . . . . Robot Hacks Applied . | . . . . Relay Couplers Released . | . . . . Fabnet Peak Effective % . | . . . . Robots Rewired . | . . . . Allies Hacked . | . . . . Hacks Repelled . | . . . . Allies | -11 -10 -10 -8 -------- Run | Yrd Mat Sub Mat Total Allies . | . . . . Largest Group . | . . . . Highest-Rated Group . | . . . . Highest-Rated Ally . | . . . . Total Orders . | . . . . Ally Attacks . | . . . . Total Damage . | . . . . Kills . | . . . . Allies Corrupted . | . . . . Allies Melted . | . . . . Intel | -11 -10 -10 -8 ------- Run | Yrd Mat Sub Mat Active Infowar (turns) 1204 | 18 1186 . . Seismic 1204 | 18 1186 . . Robot Analysis Total 3 | . 3 . . Derelict Logs Recovered . | . . . . Drone Launches . | . . . . Drone Recoveries . | . . . . Exploration | -11 -10 -10 -8 ------------- Run | Yrd Mat Sub Mat Turns Passed 2044 | 115 1250 238 441 Spaces Moved 862 | 49 550 111 152 Core 7 | 7 . . . Treads 855 | 42 550 111 152 Legs . | . . . . Wheels . | . . . . Hover . | . . . . Flight . | . . . . Fastest Speed 50 | 50 160 160 160 Average Speed 169 | 144 160 160 221 Slowest Speed 240 | 160 160 160 240 Overloaded Moves . | . . . . Propulsion Burnouts . | . . . . Robots Hopped . | . . . . Potential Cave-ins . | . . . . Cave-ins Triggered . | . . . . Exploration Rate (%) 30 | 6 92 11 14 Regions Visited 3 Branch Regions 1 Pre-discovered Areas . | . . . . Known Exits Taken . | . . . . Unknown Exits Taken 3 | 1 1 1 . Scrap Searched 1 | . . 1 . Spaces Dug 1 | . 1 . . Terrain Destroyed 1 | . 1 . . Melee . | . . . . Projectile 1 | . 1 . . AOE . | . . . . Terrain Rammed . | . . . . Walls Destroyed . | . . . . Machines Disabled . | . . . . Actions | -11 -10 -10 -8 --------- Run | Yrd Mat Sub Mat Total 1245 | 79 800 138 228 Wait 218 | 7 162 9 40 Move 859 | 48 549 110 152 Hop . | . . . . Pick Up 35 | 9 11 1 14 Fast Attach . | . . . . Attach 16 | 7 4 . 5 Detach . | . . . . Swap 8 | . 5 . 3 Drop 5 | . 3 1 1 Fire 104 | 8 66 17 13 Melee . | . . . . Ram . | . . . . Kick . | . . . . Crush . | . . . . Escape Stasis . | . . . . Rewire . | . . . . Trap . | . . . . Miscellaneous . | . . . . Route ------- -11/Scrapyard -10/Materials (discovered 5 exits: [*Mat x2] / [*Min x2] / [*Sub]) -10/Subcaves (discovered 2 exits: *Mat / [*Scr]) -8/Materials History --------- Turn | Location | Event 5 | -11/Scrapyard | Discovered new exit (range 15) 116 | -11/Scrapyard | Entered Materials 309 | -10/Materials | Build established: Mutant 448 | -10/Materials | Discovered new exit (range 10) 714 | -10/Materials | Discovered new exit (range 13) 955 | -10/Materials | Discovered new exit (range 13) 1251 | -10/Materials | Discovered new exit (range 4) 1329 | -10/Materials | Central database locked down 1333 | -10/Materials | Lost 4 parts (1p1u2w) 1353 | -10/Materials | Discovered new exit (range 5) 1366 | -10/Materials | Entered Subcaves 1367 | -10/Subcaves | Approached by a straggling Scientist 1368 | -10/Subcaves | Scientist uncovered a shortcut to Scraptown 1439 | -10/Subcaves | Ambushed by Subdwellers from Twisted Machinery 1440 | -10/Subcaves | Lost 3 allies 1440 | -10/Subcaves | Core integrity fell below 50% 1554 | -10/Subcaves | Core integrity fell below 20% 1594 | -10/Subcaves | Discovered new exit (range 5) 1604 | -10/Subcaves | Entered Materials 1604 | -8/Materials | Evolved 4 slots: Propulsion x1, Utility x2, Weapon x1 1911 | -8/Materials | Build established: Tank 2045 | -8/Materials | Self-destructed Last Messages --------------- 01884_ Acquired 33 matter. 01889_ Acquired Lgt. Armor Plating. 01902_ Y-45 Defender suffers critical hit (Burn). 01902_ Heat Sink melted. 01902_ Y-45 Defender destroyed. 01905_ Acquired 22 matter. 01912_ Acquired Hvy. Assault Rifle. 01988_ Y-45 Defender destroyed. 01994_ Acquired 12 matter. 02004_ Acquired Lgt. Armor Plating. 02024_ Acquired Nuclear Core. 02045_ Connecting with Terminal... >>Trojan(Botnet) Trojan loaded successfully. Testing... Terminal linked with 0 systems. Awaiting botnet instructions. >>Access(Branch) No branch access points found. Map ----- +----------------------------------------------------+ | ??????#### ## T """ #???????????? | | ?????????# ## ! """""#???????????? | | ?????????# ## """""#???????????? | | ?????????# ## """""#???????????? | | ?????????# ## ! " ! #???????????? | | ?????????# + =%[#???????????? | | ???????#?# ##########+##???????????? | | ???????! ######## =! #???????????? | | ?????#! = #???????????? | | ?????#! #???????????? | | ?????#! ## ### #### #?##????????? | | ?????#! ?#+#?#?#??## ### #####????? | | ?????##! ???????????# # #????? | | ??????###???????????# # !! #????? | | ????????????????????# # !! #????? | | ????????????????????# # #????? | | ????????????????????# # #????? | | ????????????????????# # """ #????? | | ????????????????????# + """ #????? | | ????????????????????# # """ #????? | | ????????????###+##### # #????? | | ????????????# # [ #????? | | ????????????# =[ # #????? | | ???????????####+################????? | | ???????????# % #???????????????? | | ???????????#@T """ #???????????????? | | ???????????# """ #???????????????? | | ???????????# """ #???????????????? | | ???????????# #???????????????? | | ???????????# !! #???????????????? | | ???????????# !! #???????????????? | | ???????????# != #???????????????? | | ???????????# #???????????????? | | ???????????# ########???????????????? | | ???????????##???????????????????????? | | | | | | | | | | | | | | | | | | | | | | | | | | | | | | | +----------------------------------------------------+ Best States ------------- Heat Dissipation 45 Energy Generation 14 Energy Capacity 250 Matter Stores 300 Matter Capacity 300 Sight Range 16 Terrain Scan Density 10 Armor Coverage 375 Evasion (%) 40 Recoil Reduction 3 Item Schematics ----------------- None Robot Schematics ------------------ None Fabricated ------------ Nothing Repaired ---------- Nothing Alien Tech Used ----------------- None Achievements -------------- None Challenges ------------ None Game ------ Seed BottomlessFlakCasing Manual? 0 Play Time 00:19:12 Cumulative 73.6 hours Start 2025.06.19 @ 11:26:57 End 2025.06.19 @ 13:03:40 Sessions 1 Manual Loads 0 Difficulty Rogue Special Mode None Game No. 70 Rogue 51 Adventurer 0 Explorer 19 Win Type - Total 0 Types 0/0/0/0/0/0/0/0/0/0 Lore% 53 Gallery% 44 Achievement% 68 Wizard Run 0 Options --------- Layout 1 ASCII 0 Keyboard 0 Movement Mouse Keybinds 0 Fullscreen 2 Font 16/SmallcapsGlow Map View 50x40 Zoom Use 6% Tactical HUD 1 Map Filters NONE Filters NONE Steam SD RUN: ddb47b3e-efd2-41eb-8bab-ee007621fe89